Cogmind - Beta 15 @@@ ROGUE MODE // 2025.08.12 @ 12:35:33 Player: WitherScout Result: Destroyed by G-47 Trooper with Particle Gun Performance ------------- Evolutions (2) 1000 Regions Visited (4) 800 Robots Destroyed (27) 135 Value Destroyed (1020) 1020 Prototype IDs (1) 20 Alien Tech Used (0) 0 Bonus (200) 200 TOTAL SCORE: 3175 Bonus ------- Pacifist 200 Cogmind --------- Core Integrity 0/550 Matter 261/300 Energy 125/125 System Corruption 1% Temperature Cool (49) Movement Flying (115) Ox1 Location -8/Storage Parts ------- > --- POWER (2) -------- Light Ion Engine > --- PROPULSION (4) --- Cesium-ion Thruster > --- UTILITY (3) ------ (None) > --- WEAPON (2) ------- Enhanced Autogun Enhanced Autogun > --- INVENTORY (5) ---- Light Nuclear Core Heat Sink Heavy Assault Rifle Heavy Assault Rifle Minigun Peak State ------------ > --- POWER ------------ Light Nuclear Core > --- PROPULSION ------- Flight Unit Flight Unit Flight Unit Flight Unit > --- UTILITY ---------- Advanced Weight Redist. System Hardened Medium Armor Plating > --- WEAPON ----------- Minigun Improved Grenade Launcher > --- INVENTORY -------- Light Ion Engine Light Ion Engine Heat Sink Heavy Assault Rifle Heavy Assault Rifle [Rating: 19] Favorites ----------- Power Light Ion Engine Engine Light Ion Engine Power Core Light Nuclear Core Propulsion Flight Unit Flight Unit Flight Unit Utility Advanced Weight Redist. System Device Advanced Weight Redist. System Storage Small Storage Unit Protection Light Armor Plating Weapon Light Assault Rifle Energy Gun Beam Rifle Ballistic Gun Light Assault Rifle Launcher Improved Grenade Launcher Build | -11 -10 -10 -8 -8 ------- Run | Yrd Mat Sub Mat Sto Slots Evolved 4 | . . . 4 . Power 1 | . . . 1 . Propulsion 2 | . . . 2 . Utility 1 | . . . 1 . Weapon . | . . . . . Parts Attached 31 | . 2 1 18 10 Power 5 | . . . 4 1 Engine 4 | . . . 4 . Core 1 | . . . . 1 Reactor . | . . . . . Propulsion 5 | . . . 4 1 Treads . | . . . . . Leg . | . . . . . Wheel . | . . . . . Hover . | . . . . . Flight 5 | . . . 4 1 Utility 6 | . . . 1 5 Device 1 | . . . . 1 Storage 1 | . . . 1 . Processor . | . . . . . Hackware . | . . . . . Protection 4 | . . . . 4 Artifact . | . . . . . Weapon 15 | . 2 1 9 3 Energy Gun 2 | . . 1 1 . Energy Cannon . | . . . . . Ballistic Gun 12 | . 2 . 8 2 Ballistic Cannon . | . . . . . Launcher 1 | . . . . 1 Special Weapon . | . . . . . Impact Weapon . | . . . . . Slashing Weapon . | . . . . . Piercing Weapon . | . . . . . Special Melee Weapon . | . . . . . Unidentified Prototypes 1 | . . . 1 . Parts Lost 14 | . . 1 4 9 Power 1 | . . . . 1 Propulsion 4 | . . . . 4 Utility 3 | . . . . 3 Weapon 6 | . . 1 4 1 Highest Loss Streak 4 | . . 1 3 4 To Critical Strikes . | . . . . . Average Backups 4 | 2 3 4 4 4 Power 1 | 1 2 2 2 1 Propulsion . | . . . . . Utility 1 | . 1 2 1 1 Weapon . | . . . . 1 Tool/Special . | . . . . . Unused Backups 8 | . . . 5 3 Power 2 | . . . 2 . Propulsion . | . . . . . Utility 3 | . . . 1 2 Weapon 3 | . . . 2 1 Tool/Special . | . . . . . Average Slot Usage (%) 36 | . 24 17 21 63 Engine 3 | . . . 2 7 Flight 8 | . . . 4 18 Device 2 | . . . . 7 Protection 4 | . . . . 11 Ballistic Gun 16 | . 24 16 12 16 Peak Build Rating 19 | . 2 5 11 19 Average Rating 7 | . 1 1 3 15 On Entrance 2 | . . 2 1 11 Naked Turns 20 | . 18 . 2 . Heaviest Build 22 | . 2 2 15 22 Greatest Support 25 | 3 3 3 16 25 Greatest Overweight (x) 1 | . . . 1 1 Average Overweight (x) . | . . . . . Largest Inventory Capacity 8 | 5 5 5 8 5 Average Capacity 5 | 5 5 5 5 5 Most Carried 7 | 4 5 5 7 5 Average Carried 4 | 2 3 4 4 4 Final Capacity 5 | 5 5 5 5 5 Final Carried 5 | 4 4 5 5 5 Class Distribution -------------------- 71% | Mutant 19% | Scavenger-Mutant 8% | Scavenger-Sprinter Dominant Class ---------------- Mutant | -10/Materials Mutant | -10/Subcaves Mutant | -8/Materials Scavenger-Mutant | -8/Storage Resources | -11 -10 -10 -8 -8 ----------- Run | Yrd Mat Sub Mat Sto Matter Collected 1084 | 200 . 29 329 526 Remotely . | . . . . . Salvage Created 1109 | . . . 499 610 Parts 60 | . . . 28 32 Haulers Intercepted 1 | . . . 1 . Recyclers Shooed . | . . . . . Parts Field Recycled . | . . . . . Retrieved Matter . | . . . . . Parts Self-Destructed . | . . . . . Prevented . | . . . . . Kills | -11 -10 -10 -8 -8 ------- Run | Yrd Mat Sub Mat Sto Combat Hostiles Destroyed 23 | . . . 11 12 Guns 22 | . . . 11 11 AOE 1 | . . . . 1 Classes Destroyed 7 | . . . 5 2 Builder 2 | . . . . 2 Hauler 1 | . . . 1 . Recycler 1 | . . . . 1 Swarmer 3 | . . . 3 . Grunt 8 | . . . 3 5 Sentry 11 | . . . 4 7 Hunter 1 | . . . 1 . Best Kill Streak 6 | . . . 6 5 Combat Bots Only 6 | . . . 6 3 Max Kills in Single Turn 2 | . . . 1 2 Gunslinging . | . . . . . Exploded 1 | . . . . 1 Melee . | . . . . . Uniques/NPCs Destroyed . | . . . . . Combat | -11 -10 -10 -8 -8 -------- Run | Yrd Mat Sub Mat Sto Hostile Shots Fired 216 | . . 20 99 97 Missed 72 | . . 7 23 42 Hits 144 | . . 13 76 55 Projectile 144 | . . 13 76 55 AOE 2 | . . 2 . . Critical Strikes 6 | . . . 2 4 Damage Taken 2210 | . . 233 1082 895 Core 668 | . . 103 396 169 Absorbed by Shields . | . . . . . Core Remaining (%) 79 | 100 . 58 . . Volleys Fired 106 | . 2 . 60 44 Largest 2 | . 2 . 2 2 Hottest 80 | . 40 . 80 61 Shots Fired 181 | . 4 . 89 88 Gun 174 | . 4 . 89 81 Cannon . | . . . . . Launcher 7 | . . . . 7 Special . | . . . . . Kinetic 163 | . 4 . 78 81 Thermal 10 | . . . 10 . Explosive 7 | . . . . 7 Electromagnetic 1 | . . . 1 . Robot Hit Streak 22 | . 3 . 17 22 Robot Miss Streak 3 | . 1 . 3 3 Penetration Max . | . . . . . Secondary Targets 6 | . . . 3 3 Max Gunslinging Chain 1 | . . . 1 1 Shots Hit Robots 136 | . 3 . 72 61 Core Hits 57 | . . . 28 29 Critical Kills 2 | . . . 2 . Critical Parts Destroyed 1 | . . . . 1 Critical Strikes 4 | . . . 3 1 Burn 1 | . . . 1 . Destroy 3 | . . . 2 1 Melee Attacks . | . . . . . Impact . | . . . . . Slashing . | . . . . . Piercing . | . . . . . Sneak Attacks . | . . . . . Combat Hostiles . | . . . . . Follow-up Attacks . | . . . . . Damage Inflicted 2448 | . 26 . 889 1533 Guns 1899 | . 26 . 889 984 Cannons . | . . . . . Explosions 549 | . . . . 549 Melee . | . . . . . Ramming . | . . . . . Kinetic 1736 | . 26 . 726 984 Thermal 147 | . . . 147 . Explosive 549 | . . . . 549 Electromagnetic 16 | . . . 16 . Impact . | . . . . . Slashing . | . . . . . Piercing . | . . . . . Highest Corruption 1 | . . . . 1 Average Corruption 1 | . . . . 1 Corruption Purged . | . . . . . Corruption Blocked . | . . . . . Overload Shots . | . . . . . Overflow Damage 37 | . . . . 37 Projectiles . | . . . . . Explosions 37 | . . . . 37 Melee . | . . . . . Knockbacks . | . . . . . Impact . | . . . . . Kinetic . | . . . . . Secondary . | . . . . . Self-Inflicted Damage 57 | . . . . 57 Shots 2 | . . . . 2 Rammed . | . . . . . Targets Rammed . | . . . . . Kicked . | . . . . . Crushed . | . . . . . Highest Temperature 140 | . . . 57 140 Average Temperature 31 | . . . 21 36 Received Heat Transfer 825 | . . 51 342 432 Siege Activations . | . . . . . Martial Activations . | . . . . . Shielding Activations . | . . . . . Robots Disrupted . | . . . . . Combat Hostiles . | . . . . . Robots Corrupted . | . . . . . Combat Hostiles . | . . . . . Parts Fried . | . . . . . Impact Corruptions . | . . . . . Robots Melted . | . . . . . Combat Hostiles . | . . . . . Parts Melted 3 | . . . 3 . Heat Transferred 444 | . . . 444 . Parts Sabotaged . | . . . . . Parts Stolen . | . . . . . Parts Stripped . | . . . . . Power Chain Reactions . | . . . . . Alert | -11 -10 -10 -8 -8 ------- Run | Yrd Mat Sub Mat Sto Maximum Alert Level 1 | . . . . 1 Low Security (%) 72 | 100 100 . 100 30 Level 1 27 | . . . . 69 Level 2 . | . . . . . Level 3 . | . . . . . Level 4 . | . . . . . Level 5 . | . . . . . High Security . | . . . . . Max Security . | . . . . . Peak Influence 385 | . . . 189 385 Initial 72 | . . . 20 72 Average 116 | . . . 59 239 Influence Increases 1029 | . 6 60 357 606 Destroy 0b10 Robot/C 460 | . . . 220 240 Destroy 0b10 Robot/NC 20 | . . . 5 15 Destroy Leader 152 | . . . 72 80 Successful Hack 22 | . 6 . . 16 Disable Machine 60 | . . . . 60 Destroy Structure 60 | . . . . 60 Partial Spotted 105 | . . . 60 45 Lose Combat Pursuer 150 | . . 60 . 90 Influence Decreases 663 | . 6 20 224 413 Entered New Map 121 | . . . 20 101 Time Decay 422 | . 6 20 174 222 Lost Part 120 | . . . 30 90 Squads Dispatched 4 | . . . 1 3 Investigation 1 | . . . 1 . Extermination . | . . . . . Reinforcement 3 | . . . . 3 Assault . | . . . . . Garrison . | . . . . . Intercept . | . . . . . Searches Triggered . | . . . . . Construction Impeded 1 | . . . . 1 Haulers Reinforced . | . . . . . Active Scanning Responses . | . . . . . Cargo Convoy Interrupts . | . . . . . Stealth | -11 -10 -10 -8 -8 --------- Run | Yrd Mat Sub Mat Sto Distress Signals 3 | . . . 1 2 Communications Jammed . | . . . . . Distress Signals . | . . . . . Times Spotted 55 | . 2 10 20 23 Peak Tracking Total 8 | . 2 5 8 7 Tactical Retreats 6 | . . 3 . 3 Traps | -11 -10 -10 -8 -8 ------- Run | Yrd Mat Sub Mat Sto Traps Triggered 1 | . . . . 1 Indirectly . | . . . . . Trap Hack Attempts . | . . . . . Triggered . | . . . . . Disarmed . | . . . . . Reprogrammed . | . . . . . Reused . | . . . . . Traps Extracted . | . . . . . Installed . | . . . . . Triggered . | . . . . . Machines | -11 -10 -10 -8 -8 ---------- Run | Yrd Mat Sub Mat Sto Machines Disabled 4 | . . . . 4 Max in Single Turn 2 | . . . . 2 Garrison Access 1 | . . . . 1 Machines Repaired . | . . . . . Machines Dismantled . | . . . . . Machines Sabotaged . | . . . . . Overloaded Fab Kills . | . . . . . Hacking | -11 -10 -10 -8 -8 --------- Run | Yrd Mat Sub Mat Sto Machines Accessed 10 | . 1 1 3 5 Terminals 6 | . 1 . 1 4 Fabricators . | . . . . . Repair Stations . | . . . . . Recycling Units . | . . . . . Scanalyzers 1 | . . . 1 . Garrison Access 2 | . . . 1 1 Total Hacks 24 | . 1 4 10 9 Successful 14 | . 1 4 4 5 Failed 10 | . . . 6 4 Catastrophic 3 | . . . 2 1 Database Lockouts . | . . . . . Manual 2 | . 1 . 1 . Terminals 9 | . 1 . 1 7 Fabricators . | . . . . . Repair Stations . | . . . . . Recycling Units . | . . . . . Scanalyzers 7 | . . . 7 . Garrison Access 4 | . . . 2 2 Terminal Hacks 9 | . 1 4 . 4 Record 4 | . . 4 . . Open Door 1 | . . . . 1 Locate Traps 1 | . . . . 1 Zone Layout 3 | . 1 . . 2 Fabricator Hacks . | . . . . . Repair Station Hacks . | . . . . . Recycling Unit Hacks . | . . . . . Scanalyzer 4 | . . . 4 . Insert Component 2 | . . . 2 . Analyze 2 | . . . 2 . Garrison Access Hacks 1 | . . . . 1 Seal Access 1 | . . . . 1 Unauthorized Hacks . | . . . . . Terminals . | . . . . . Fabricators . | . . . . . Repair Stations . | . . . . . Recycling Units . | . . . . . Scanalyzers . | . . . . . Garrison Access . | . . . . . Data Cores Recovered . | . . . . . Used . | . . . . . Hacking Detections 4 | . . . 3 1 Full Trace Events 1 | . . . 1 . Feedback Events . | . . . . . Feedback Blocked . | . . . . . Robot Schematics Acquired . | . . . . . Robots Built . | . . . . . Authchips . | . . . . . Time . | . . . . . Total Robot Build Rating . | . . . . . Part Schematics Acquired 2 | . . . 2 . Parts Built . | . . . . . Authchips . | . . . . . Time . | . . . . . Total Part Build Rating . | . . . . . Parts Repaired . | . . . . . Time . | . . . . . Parts Recycled . | . . . . . Recycled Matter . | . . . . . Retrieved Matter . | . . . . . Retrieved Components . | . . . . . Parts Scanalyzed 2 | . . . 2 . Part Schematics Acquired 2 | . . . 2 . Parts Damaged . | . . . . . Bothacking | -11 -10 -10 -8 -8 ------------ Run | Yrd Mat Sub Mat Sto Used RIF Installer . | . . . . . Robots Hacked . | . . . . . Non-combat . | . . . . . Combat . | . . . . . Robot Hacks Applied . | . . . . . Relay Couplers Released . | . . . . . Fabnet Peak Effective % . | . . . . . Robots Rewired . | . . . . . Allies Hacked . | . . . . . Hacks Repelled . | . . . . . Allies | -11 -10 -10 -8 -8 -------- Run | Yrd Mat Sub Mat Sto Total Allies . | . . . . . Largest Group . | . . . . . Highest-Rated Group . | . . . . . Highest-Rated Ally . | . . . . . Total Orders . | . . . . . Ally Attacks . | . . . . . Total Damage . | . . . . . Kills . | . . . . . Allies Corrupted . | . . . . . Allies Melted . | . . . . . Intel | -11 -10 -10 -8 -8 ------- Run | Yrd Mat Sub Mat Sto Active Infowar (turns) . | . . . . . Robot Analysis Total . | . . . . . Derelict Logs Recovered . | . . . . . Drone Launches . | . . . . . Drone Recoveries . | . . . . . Exploration | -11 -10 -10 -8 -8 ------------- Run | Yrd Mat Sub Mat Sto Turns Passed 1312 | 23 238 128 461 462 Spaces Moved 1207 | 35 92 251 297 532 Core 576 | 35 92 251 198 . Treads . | . . . . . Legs . | . . . . . Wheels . | . . . . . Hover . | . . . . . Flight 631 | . . . 99 532 Fastest Speed 31 | 50 50 50 31 31 Average Speed 41 | 50 50 50 44 34 Slowest Speed 114 | 50 50 50 100 114 Overloaded Moves . | . . . . . Propulsion Burnouts . | . . . . . Robots Hopped 11 | . . . 2 9 Potential Cave-ins . | . . . . . Cave-ins Triggered . | . . . . . Exploration Rate (%) 29 | 3 22 24 28 72 Regions Visited 4 Branch Regions 2 Pre-discovered Areas 2 | . . 1 . 1 Known Exits Taken . | . . . . . Unknown Exits Taken 4 | 1 1 1 1 . Scrap Searched . | . . . . . Spaces Dug . | . . . . . Terrain Destroyed 74 | . . . . 74 Melee . | . . . . . Projectile . | . . . . . AOE 74 | . . . . 74 Terrain Rammed . | . . . . . Walls Destroyed . | . . . . . Machines Disabled . | . . . . . Actions | -11 -10 -10 -8 -8 --------- Run | Yrd Mat Sub Mat Sto Total 1847 | 39 280 252 551 725 Wait 462 | 1 183 . 152 126 Move 1181 | 34 91 250 292 514 Hop 11 | . . . 2 9 Pick Up 18 | 4 2 . 9 3 Fast Attach 18 | . . 1 10 7 Attach 10 | . 2 . 5 3 Detach 5 | . . 1 2 2 Swap 15 | . . . 6 9 Drop 21 | . . . 13 8 Fire 106 | . 2 . 60 44 Melee . | . . . . . Ram . | . . . . . Kick . | . . . . . Crush . | . . . . . Escape Stasis . | . . . . . Rewire . | . . . . . Trap . | . . . . . Miscellaneous . | . . . . . Route ------- -11/Scrapyard -10/Materials -10/Subcaves (discovered 2 exits: *Mat / Rec) -8/Materials -8/Storage History --------- Turn | Location | Event 8 | -11/Scrapyard | Discovered new exit (range 15) 24 | -11/Scrapyard | Entered Materials 260 | -10/Materials | Discovered new exit (range 5) 262 | -10/Materials | Entered Subcaves 268 | -10/Subcaves | Ambushed by Subdwellers from Twisted Machinery 307 | -10/Subcaves | Shifting Twisted Machinery released Hvy. Riot Gun 331 | -10/Subcaves | Build established: Mutant 365 | -10/Subcaves | Discovered new exit (range 9) 373 | -10/Subcaves | Visited Clippyterm 375 | -10/Subcaves | Identified exit to Recycling 375 | -10/Subcaves | Learned location of Deep Caves (-7) 390 | -10/Subcaves | Entered Materials 390 | -8/Materials | Evolved 4 slots: Power x1, Propulsion x2, Utility x1 715 | -8/Materials | Core integrity fell below 50% 747 | -8/Materials | Lost 3 parts (3w) 849 | -8/Materials | Discovered new exit (range 5) 851 | -8/Materials | Entered Storage 942 | -8/Storage | Lost 3 parts (3n) 982 | -8/Storage | Core integrity fell below 20% 1228 | -8/Storage | Learned location of Armory (-4) 1300 | -8/Storage | Lost 4 parts (3u1w) 1313 | -8/Storage | Destroyed by G-47 Trooper with Particle Gun Last Messages --------------- U-05 Engineer builds a Wall. Y-45 Defender destroyed. U-05 Engineer lays Concrete. K-01 Serf collects debris. Acquired 29 matter. Acquired 30 matter. Acquired 39 matter. Acquired 20 matter. K-01 Serf collects debris. Connecting with Door Terminal... >>Open(Door) Sealed Heavy Doors opened. Connecting with Door Terminal... Triggered Shock Trap. The floor emits a surge of raw power. System corrupted (+1). U-05 Engineer lays Concrete. K-01 Serf collects debris. Flight Unit destroyed. K-01 Serf collects debris. Map ----- +----------------------------------------------------+ | ????????????????????????????????#"""#???????? | | ????????????????????????????????#"G"#??#####? | | ??????????###########????########" "#### #? | | ########### #????# + #? | | + """ """ #????# ############# #? | | ######## ## """ """ #???## #???????????#####? | | #??????# ## """ """ ##??# #????????????????? | | ######## ## """ ##??# #????????????????? | | # # ## """ ##??#!|##???????????????? | | # # ## != ##?#%|# #??????????????? | | / """ + ## [%=* ###[=###??????????????? | | # """ # ## ###+########=%k!#!??????????????? | | # """ # # # =*= # #??""""???????? | | / # %! !%! *!# #?## #???????? | | ####+### ##### ######### %*# #?#T #???????? | | ???# #?# # # # ?????## ####?## #???????? | | ???# ### ## # # ##????## ###???# #???????? | | #### ## ####+########## #?????# #######?? | | T #??# ##t #?????# ## ]]#?? | | #+##### #??# ## a##???## ## ]]#?? | | ####+##### # ##### + ]]#?? | | ## # + #T###??? | | ## """ % # """ """ # ###????? | | ## """ # """ """ # ##### #??????? | | ## """ # """ """ ## ##???####+##?????? | | ## # ##@ #??????# ##????? | | ######################### ######?# T#????? | | ????????? g #?#" "##????? | | ????????? g #?# ]#?????? | | ????????????################## #?# ]#?????? | | ????????????????????########## #?#[ ]#?????? | | ????????????????????# # #?#[ ]#?????? | | ????????????????????# + #?#####?????? | | ????????????????????# """ # #???????????? | | ????????????????????????"""" ## #???????????? | | ???????????????????????????" ## #???????????? | | ???????????????????????????" ## #???????????? | | ???????????????????????????" ## #???????????? | | ????????????????????# """ ## ##+####?????? | | ##??????????????????# ## #?????? | | #?????????????????########### ##+#?????? | | #????????????????????# # #????????? | | #????????????????????# ! + +????????? | | #????????????????????# / # #????????? | | ###################### # #????????? | | # %[ # ## # +????????? | | # # "" ## # #????????? | | # # "" ######+## #????????? | | + !] # " # + #??? | | # !] #[% ! [# !] ####+#####???????? | +----------------------------------------------------+ Best States ------------- Heat Dissipation 31 Energy Generation 15 Energy Capacity 160 Matter Stores 300 Matter Capacity 300 Sight Range 16 Terrain Scan Density 10 Additional Mass Support 9 Armor Coverage 300 Evasion (%) 63 Item Schematics ----------------- Heat Sink | -8/Materials | Scanalyzed Lgt. Ion Engine | -8/Materials | Scanalyzed Robot Schematics ------------------ None Fabricated ------------ Nothing Repaired ---------- Nothing Alien Tech Used ----------------- None Achievements -------------- None Challenges ------------ None Game ------ Seed ThrowingNetworkPlating Manual? 0 Play Time 00:31:04 Cumulative 13.1 hours Start 2025.08.12 @ 12:04:31 End 2025.08.12 @ 12:35:33 Sessions 1 Manual Loads 0 Difficulty Rogue Special Mode None Game No. 26 Rogue 26 Adventurer 0 Explorer 0 Win Type - Total 0 Types 0/0/0/0/0/0/0/0/0/0 Lore% 3 Gallery% 15 Achievement% 18 Wizard Run 0 Options --------- Layout 1 ASCII 1 Keyboard 0 Movement Numpad Keybinds 0 Fullscreen 1 Font 24/Cog Map View 50x35 Zoom Use 0% Tactical HUD 0 Map Filters NONE Filters NONE Steam 0 RUN: 74dbbacd-ca3d-4d47-a222-56fe7855c6f9